[Event "Titled Tuesday Blitz August 22 Early 2023"]
[White "Forgacs, Attila Jr."]
[Black "Coelho, Ramyres Santana"]
[WhiteFideId "773654"]
[BlackFideId "2120690"]
[WhiteElo "2500"]
[BlackElo "2307"]
[Result "0-1"]
[Round "3"]
[TimeControl "180+1"]
[Date "2023.08.22"]
[WhiteClock "0:00:02"]
[BlackClock "0:01:20"]
[Board "218"]

1. e4 {[%clk 0:03:00]}  c5 {[%clk 0:02:47]} 2. Nf3 {[%clk 0:02:59]}  d6 {[%clk 0:02:46]} 3. d4 {[%clk 0:03:00]}  cxd4 {[%clk 0:02:43]} 4. Nxd4 {[%clk 0:03:01]}  Nf6 {[%clk 0:02:40]} 5. Nc3 {[%clk 0:03:01]}  a6 {[%clk 0:02:37]} 6. f3 {[%clk 0:03:01]}  e6 {[%clk 0:02:37]} 7. Be3 {[%clk 0:03:00]}  b5 {[%clk 0:02:33]} 8. Qd2 {[%clk 0:03:01]}  Bb7 {[%clk 0:02:33]} 9. g4 {[%clk 0:02:59]}  Nbd7 {[%clk 0:02:34]} 10. O-O-O {[%clk 0:02:59]}  Rc8 {[%clk 0:02:34]} 11. h4 {[%clk 0:02:59]}  Nb6 {[%clk 0:02:34]} 12. g5 {[%clk 0:02:59]}  Nfd7 {[%clk 0:02:34]} 13. Bh3 {[%clk 0:02:58]}  Nc4 {[%clk 0:02:34]} 14. Qf2 {[%clk 0:02:59]}  Nxe3 {[%clk 0:02:34]} 15. Qxe3 {[%clk 0:02:59]}  Ne5 {[%clk 0:02:34]} 16. Kb1 {[%clk 0:02:34]}  Nc4 {[%clk 0:02:32]} 17. Qd3 {[%clk 0:02:19]}  Be7 {[%clk 0:02:29]} 18. Bxe6 {[%clk 0:02:06]}  fxe6 {[%clk 0:02:27]} 19. Nxe6 {[%clk 0:02:07]}  Qa5 {[%clk 0:02:20]} 20. Nd5 {[%clk 0:01:36]}  Bxd5 {[%clk 0:02:10]} 21. Qxd5 {[%clk 0:01:36]}  Qb4 {[%clk 0:02:04]} 22. Nxg7+ {[%clk 0:01:36]}  Kf8 {[%clk 0:01:55]} 23. Ne6+ {[%clk 0:01:30]}  Ke8 {[%clk 0:01:47]} 24. Ng7+ {[%clk 0:01:01]}  Kd7 {[%clk 0:01:40]} 25. Qf5+ {[%clk 0:00:47]}  Kc7 {[%clk 0:01:32]} 26. b3 {[%clk 0:00:40]}  Na3+ {[%clk 0:01:29]} 27. Kb2 {[%clk 0:00:37]}  Kb6 {[%clk 0:01:22]} 28. e5 {[%clk 0:00:14]}  Qc3+ {[%clk 0:01:20]} 29. Kc1 {[%clk 0:00:02]}  Qxc2+ {[%clk 0:01:20]} 30. Qxc2 {[%clk 0:00:02]}  Rxc2# {[%clk 0:01:20]} 0-1


[Site "https://www.chess.com"]

[Event "Titled Tuesday Blitz August 22 Early 2023"]
[White "Prydun, Andriy"]
[Black "Berezin, Viktor"]
[WhiteFideId "14145898"]
[BlackFideId "14107872"]
[WhiteElo "2306"]
[BlackElo "2492"]
[Result "1/2-1/2"]
[Round "3"]
[TimeControl "180+1"]
[Date "2023.08.22"]
[WhiteClock "0:00:04"]
[BlackClock "0:00:03"]
[Board "220"]

1. e4 {[%clk 0:02:50]}  c6 {[%clk 0:02:55]} 2. d4 {[%clk 0:02:49]}  d5 {[%clk 0:02:54]} 3. e5 {[%clk 0:02:50]}  Bf5 {[%clk 0:02:54]} 4. Bd3 {[%clk 0:02:50]}  Bxd3 {[%clk 0:02:51]} 5. cxd3 {[%clk 0:02:51]}  e6 {[%clk 0:02:51]} 6. Nc3 {[%clk 0:02:51]}  Qb6 {[%clk 0:02:50]} 7. Nf3 {[%clk 0:02:50]}  Qa6 {[%clk 0:02:48]} 8. O-O {[%clk 0:02:49]}  Ne7 {[%clk 0:02:49]} 9. Rb1 {[%clk 0:02:49]}  Nf5 {[%clk 0:02:46]} 10. b4 {[%clk 0:02:49]}  Qb6 {[%clk 0:02:34]} 11. Ne2 {[%clk 0:02:46]}  a5 {[%clk 0:02:25]} 12. Qa4 {[%clk 0:02:41]}  Na6 {[%clk 0:02:19]} 13. a3 {[%clk 0:02:37]}  axb4 {[%clk 0:02:13]} 14. axb4 {[%clk 0:02:34]}  Nc7 {[%clk 0:02:08]} 15. Qb3 {[%clk 0:02:28]}  Nb5 {[%clk 0:02:08]} 16. Be3 {[%clk 0:02:24]}  Be7 {[%clk 0:02:06]} 17. g4 {[%clk 0:02:23]}  Nxe3 {[%clk 0:02:01]} 18. fxe3 {[%clk 0:02:23]}  O-O {[%clk 0:02:02]} 19. Nf4 {[%clk 0:02:21]}  Ra3 {[%clk 0:02:01]} 20. Qc2 {[%clk 0:02:20]}  Rfa8 {[%clk 0:01:59]} 21. Rb2 {[%clk 0:02:19]}  Rc3 {[%clk 0:01:56]} 22. Qg2 {[%clk 0:02:19]}  Raa3 {[%clk 0:01:45]} 23. Qf2 {[%clk 0:01:56]}  Qd8 {[%clk 0:01:24]} 24. g5 {[%clk 0:01:37]}  Qe8 {[%clk 0:01:19]} 25. Qg3 {[%clk 0:01:30]}  Rab3 {[%clk 0:01:15]} 26. Rxb3 {[%clk 0:01:27]}  Rxb3 {[%clk 0:01:16]} 27. h4 {[%clk 0:01:10]}  g6 {[%clk 0:00:58]} 28. h5 {[%clk 0:01:09]}  Nc3 {[%clk 0:00:57]} 29. Nh2 {[%clk 0:00:49]}  Qd8 {[%clk 0:00:48]} 30. Nf3 {[%clk 0:00:36]}  Rb2 {[%clk 0:00:47]} 31. Rf2 {[%clk 0:00:12]}  Rxf2 {[%clk 0:00:41]} 32. Kxf2 {[%clk 0:00:12]}  Nd1+ {[%clk 0:00:37]} 33. Ke2 {[%clk 0:00:12]}  Nc3+ {[%clk 0:00:37]} 34. Kf2 {[%clk 0:00:12]}  Bxb4 {[%clk 0:00:38]} 35. Nh2 {[%clk 0:00:07]}  Qa5 {[%clk 0:00:32]} 36. Ng4 {[%clk 0:00:06]}  Qa2+ {[%clk 0:00:31]} 37. Kf3 {[%clk 0:00:06]}  Qb1 {[%clk 0:00:22]} 38. Nf6+ {[%clk 0:00:06]}  Kg7 {[%clk 0:00:22]} 39. hxg6 {[%clk 0:00:05]}  Qd1+ {[%clk 0:00:17]} 40. Kg2 {[%clk 0:00:05]}  fxg6 {[%clk 0:00:12]} 41. Qh4 {[%clk 0:00:05]}  Qd2+ {[%clk 0:00:11]} 42. Kf1 {[%clk 0:00:05]}  Qc1+ {[%clk 0:00:08]} 43. Kg2 {[%clk 0:00:05]}  Qd2+ {[%clk 0:00:07]} 44. Kf1 {[%clk 0:00:04]}  Qd1+ {[%clk 0:00:05]} 45. Kg2 {[%clk 0:00:04]}  Qd2+ {[%clk 0:00:03]} 1/2-1/2


[Site "https://www.chess.com"]

[Event "Titled Tuesday Blitz August 22 Early 2023"]
[White "Zaksaite, Salomeja"]
[Black "only_strong_moves"]
[WhiteFideId "12801496"]
[WhiteElo "2302"]
[BlackElo "2491"]
[Result "0-1"]
[Round "3"]
[TimeControl "180+1"]
[Date "2023.08.22"]
[WhiteClock "0:00:00"]
[BlackClock "0:00:03"]
[Board "221"]

1. e4 {[%clk 0:02:53]}  e6 {[%clk 0:02:59]} 2. d4 {[%clk 0:02:51]}  d5 {[%clk 0:03:00]} 3. Nd2 {[%clk 0:02:51]}  c5 {[%clk 0:02:59]} 4. exd5 {[%clk 0:02:48]}  Qxd5 {[%clk 0:03:00]} 5. Ngf3 {[%clk 0:02:47]}  cxd4 {[%clk 0:02:59]} 6. Bc4 {[%clk 0:02:46]}  Qd6 {[%clk 0:02:59]} 7. O-O {[%clk 0:02:41]}  Nf6 {[%clk 0:02:59]} 8. Nb3 {[%clk 0:02:36]}  Nc6 {[%clk 0:02:59]} 9. Nbxd4 {[%clk 0:02:35]}  Nxd4 {[%clk 0:03:00]} 10. Qxd4 {[%clk 0:02:33]}  Qxd4 {[%clk 0:02:59]} 11. Nxd4 {[%clk 0:02:32]}  Bd7 {[%clk 0:02:48]} 12. Bb5 {[%clk 0:02:24]}  Bc5 {[%clk 0:02:44]} 13. Bxd7+ {[%clk 0:02:23]}  Nxd7 {[%clk 0:02:45]} 14. Be3 {[%clk 0:02:23]}  O-O {[%clk 0:02:43]} 15. c4 {[%clk 0:02:18]}  Ne5 {[%clk 0:02:40]} 16. Nc2 {[%clk 0:02:15]}  Be7 {[%clk 0:02:23]} 17. b3 {[%clk 0:02:13]}  Rfd8 {[%clk 0:02:21]} 18. Rfd1 {[%clk 0:02:12]}  Nd3 {[%clk 0:02:16]} 19. Rd2 {[%clk 0:02:10]}  Ne5 {[%clk 0:01:23]} 20. Rad1 {[%clk 0:02:06]}  Rxd2 {[%clk 0:01:23]} 21. Rxd2 {[%clk 0:02:06]}  a6 {[%clk 0:01:20]} 22. f3 {[%clk 0:01:38]}  Rd8 {[%clk 0:01:09]} 23. Rxd8+ {[%clk 0:01:37]}  Bxd8 {[%clk 0:01:10]} 24. Kf2 {[%clk 0:01:36]}  f5 {[%clk 0:01:07]} 25. Ke2 {[%clk 0:01:16]}  Kf7 {[%clk 0:01:06]} 26. Bd4 {[%clk 0:01:12]}  Nc6 {[%clk 0:01:05]} 27. Bc3 {[%clk 0:01:10]}  Bc7 {[%clk 0:01:03]} 28. h3 {[%clk 0:01:10]}  g5 {[%clk 0:00:58]} 29. Nd4 {[%clk 0:00:59]}  Ne5 {[%clk 0:00:58]} 30. c5 {[%clk 0:00:39]}  Ng6 {[%clk 0:00:39]} 31. c6 {[%clk 0:00:26]}  b5 {[%clk 0:00:36]} 32. a4 {[%clk 0:00:24]}  bxa4 {[%clk 0:00:35]} 33. bxa4 {[%clk 0:00:24]}  Ne7 {[%clk 0:00:35]} 34. Bb4 {[%clk 0:00:22]}  Nd5 {[%clk 0:00:28]} 35. Bd2 {[%clk 0:00:16]}  h6 {[%clk 0:00:19]} 36. Kd3 {[%clk 0:00:16]}  Ke7 {[%clk 0:00:17]} 37. Kc4 {[%clk 0:00:15]}  Nb6+ {[%clk 0:00:11]} 38. Kb3 {[%clk 0:00:13]}  Kd6 {[%clk 0:00:10]} 39. h4 {[%clk 0:00:11]}  Kd5 {[%clk 0:00:08]} 40. Nc2 {[%clk 0:00:05]}  Kxc6 {[%clk 0:00:06]} 41. hxg5 {[%clk 0:00:04]}  hxg5 {[%clk 0:00:06]} 42. Bxg5 {[%clk 0:00:03]}  Bd6 {[%clk 0:00:06]} 43. g4 {[%clk 0:00:03]}  Nd5 {[%clk 0:00:04]} 44. gxf5 {[%clk 0:00:02]}  exf5 {[%clk 0:00:05]} 45. Nd4+ {[%clk 0:00:02]}  Kc5 {[%clk 0:00:06]} 46. Nxf5 {[%clk 0:00:02]}  Be5 {[%clk 0:00:05]} 47. Ne3 {[%clk 0:00:02]}  Nb6 {[%clk 0:00:03]} 48. Be7+ {[%clk 0:00:00]}  Kc6 {[%clk 0:00:03]} 0-1


[Site "https://www.chess.com"]

[Event "Titled Tuesday Blitz August 22 Early 2023"]
[White "Urbina Perez, Juan Antonio"]
[Black "EvgenyBurmakin"]
[WhiteFideId "2217368"]
[WhiteElo "2471"]
[BlackElo "2294"]
[Result "1-0"]
[Round "3"]
[TimeControl "180+1"]
[Date "2023.08.22"]
[WhiteClock "0:00:40"]
[BlackClock "0:00:00"]
[Board "226"]

1. e4 {[%clk 0:03:00]}  c5 {[%clk 0:02:57]} 2. Nf3 {[%clk 0:03:00]}  d6 {[%clk 0:02:56]} 3. Bb5+ {[%clk 0:02:57]}  Nd7 {[%clk 0:02:55]} 4. d4 {[%clk 0:02:56]}  cxd4 {[%clk 0:02:52]} 5. Qxd4 {[%clk 0:02:57]}  a6 {[%clk 0:02:50]} 6. Bxd7+ {[%clk 0:02:58]}  Bxd7 {[%clk 0:02:51]} 7. Nc3 {[%clk 0:02:58]}  e5 {[%clk 0:02:40]} 8. Qd3 {[%clk 0:02:59]}  Nf6 {[%clk 0:02:39]} 9. Bg5 {[%clk 0:02:57]}  Be6 {[%clk 0:02:28]} 10. O-O-O {[%clk 0:02:44]}  h6 {[%clk 0:02:24]} 11. Bxf6 {[%clk 0:02:42]}  Qxf6 {[%clk 0:02:25]} 12. Nd5 {[%clk 0:02:36]}  Qd8 {[%clk 0:02:25]} 13. Nd2 {[%clk 0:02:32]}  b5 {[%clk 0:02:19]} 14. Nf1 {[%clk 0:02:30]}  g6 {[%clk 0:02:17]} 15. Nfe3 {[%clk 0:02:26]}  Bg7 {[%clk 0:02:16]} 16. Nb4 {[%clk 0:02:25]}  O-O {[%clk 0:02:11]} 17. Qxd6 {[%clk 0:02:24]}  Qa5 {[%clk 0:02:07]} 18. a3 {[%clk 0:02:24]}  Rfd8 {[%clk 0:02:02]} 19. Nc6 {[%clk 0:02:17]}  Rxd6 {[%clk 0:01:58]} 20. Nxa5 {[%clk 0:02:17]}  Rd4 {[%clk 0:01:57]} 21. f3 {[%clk 0:02:13]}  h5 {[%clk 0:01:42]} 22. c3 {[%clk 0:01:57]}  Ra4 {[%clk 0:01:19]} 23. Nc6 {[%clk 0:01:48]}  Bh6 {[%clk 0:01:17]} 24. Rhe1 {[%clk 0:01:46]}  Bb3 {[%clk 0:01:07]} 25. Rd8+ {[%clk 0:01:38]}  Rxd8 {[%clk 0:01:06]} 26. Nxd8 {[%clk 0:01:38]}  Rc4 {[%clk 0:00:57]} 27. Nb7 {[%clk 0:01:32]}  Rc7 {[%clk 0:00:44]} 28. Na5 {[%clk 0:01:13]}  Be6 {[%clk 0:00:41]} 29. Kc2 {[%clk 0:01:12]}  Rd7 {[%clk 0:00:31]} 30. Nf1 {[%clk 0:01:10]}  Bg5 {[%clk 0:00:28]} 31. Rd1 {[%clk 0:01:09]}  Rc7 {[%clk 0:00:20]} 32. Nb3 {[%clk 0:01:04]}  Be7 {[%clk 0:00:13]} 33. Nc1 {[%clk 0:01:04]}  a5 {[%clk 0:00:13]} 34. Ne3 {[%clk 0:01:04]}  b4 {[%clk 0:00:13]} 35. axb4 {[%clk 0:01:05]}  axb4 {[%clk 0:00:12]} 36. Nd5 {[%clk 0:01:05]}  Bxd5 {[%clk 0:00:10]} 37. Rxd5 {[%clk 0:01:06]}  bxc3 {[%clk 0:00:09]} 38. bxc3 {[%clk 0:01:07]}  f6 {[%clk 0:00:08]} 39. Nd3 {[%clk 0:01:05]}  Kf7 {[%clk 0:00:07]} 40. Ra5 {[%clk 0:01:03]}  Rb7 {[%clk 0:00:03]} 41. Ra8 {[%clk 0:00:58]}  Rc7 {[%clk 0:00:02]} 42. Ra5 {[%clk 0:00:56]}  Rb7 {[%clk 0:00:03]} 43. Ra4 {[%clk 0:00:44]}  Rc7 {[%clk 0:00:03]} 44. Nb4 {[%clk 0:00:44]}  Rb7 {[%clk 0:00:03]} 45. Nd5 {[%clk 0:00:43]}  Rd7 {[%clk 0:00:02]} 46. Rc4 {[%clk 0:00:40]}  f5 {[%clk 0:00:03]} 47. Rc7 {[%clk 0:00:39]}  Rxc7 {[%clk 0:00:02]} 48. Nxc7 {[%clk 0:00:40]}  fxe4 {[%clk 0:00:02]} 49. fxe4 {[%clk 0:00:41]}  Bc5 {[%clk 0:00:01]} 50. Nd5 {[%clk 0:00:42]}  Bg1 {[%clk 0:00:01]} 51. h3 {[%clk 0:00:42]}  g5 {[%clk 0:00:01]} 52. Kb3 {[%clk 0:00:42]}  Ke6 {[%clk 0:00:01]} 53. Kc4 {[%clk 0:00:41]}  Kd6 {[%clk 0:00:00]} 54. Nf6 {[%clk 0:00:40]} 1-0


[Site "https://www.chess.com"]

[Event "Titled Tuesday Blitz August 22 Early 2023"]
[White "Sariego Figueredo, Wilfredo"]
[Black "Omariev, Maksim"]
[WhiteFideId "3500080"]
[BlackFideId "4193423"]
[WhiteElo "2270"]
[BlackElo "2470"]
[Result "0-1"]
[Round "3"]
[TimeControl "180+1"]
[Date "2023.08.22"]
[WhiteClock "0:00:54"]
[BlackClock "0:00:04"]
[Board "228"]

1. d4 {[%clk 0:02:59]}  h5 {[%clk 0:01:55]} 2. Bf4 {[%clk 0:02:55]}  h4 {[%clk 0:01:56]} 3. Nf3 {[%clk 0:02:54]}  h3 {[%clk 0:01:56]} 4. g3 {[%clk 0:02:54]}  d5 {[%clk 0:01:55]} 5. Nc3 {[%clk 0:02:53]}  c6 {[%clk 0:01:55]} 6. Ng5 {[%clk 0:02:48]}  f6 {[%clk 0:01:47]} 7. Nf3 {[%clk 0:02:47]}  g5 {[%clk 0:01:46]} 8. Bd2 {[%clk 0:02:46]}  Qb6 {[%clk 0:01:45]} 9. Qc1 {[%clk 0:02:42]}  Bf5 {[%clk 0:01:43]} 10. Na4 {[%clk 0:02:36]}  Qc7 {[%clk 0:01:38]} 11. c4 {[%clk 0:02:31]}  e6 {[%clk 0:01:35]} 12. cxd5 {[%clk 0:02:29]}  exd5 {[%clk 0:01:35]} 13. e3 {[%clk 0:02:29]}  Be4 {[%clk 0:00:51]} 14. Be2 {[%clk 0:02:28]}  g4 {[%clk 0:00:51]} 15. Nh4 {[%clk 0:01:51]}  Bxh1 {[%clk 0:00:49]} 16. Bxg4 {[%clk 0:01:51]}  Nd7 {[%clk 0:00:36]} 17. Qc2 {[%clk 0:01:42]}  Be4 {[%clk 0:00:35]} 18. Qb3 {[%clk 0:01:35]}  Bd6 {[%clk 0:00:22]} 19. Bf5 {[%clk 0:01:23]}  Rxh4 {[%clk 0:00:18]} 20. Bxd7+ {[%clk 0:01:21]}  Qxd7 {[%clk 0:00:12]} 21. gxh4 {[%clk 0:01:22]}  Qg4 {[%clk 0:00:12]} 22. Qxb7 {[%clk 0:01:21]}  Rb8 {[%clk 0:00:09]} 23. Qxc6+ {[%clk 0:01:20]}  Ke7 {[%clk 0:00:10]} 24. b3 {[%clk 0:01:03]}  Bd3 {[%clk 0:00:05]} 25. Nc3 {[%clk 0:00:54]}  Qg1# {[%clk 0:00:04]} 0-1


[Site "https://www.chess.com"]

[Event "Titled Tuesday Blitz August 22 Early 2023"]
[White "Herman, Daniel"]
[Black "Hoffmann, Asa"]
[WhiteFideId "30935008"]
[BlackFideId "2001470"]
[WhiteElo "2440"]
[BlackElo "2259"]
[Result "0-1"]
[Round "3"]
[TimeControl "180+1"]
[Date "2023.08.22"]
[WhiteClock "0:00:07"]
[BlackClock "0:00:54"]
[Board "230"]

1. d4 {[%clk 0:03:00]}  Nf6 {[%clk 0:02:55]} 2. c4 {[%clk 0:03:01]}  c5 {[%clk 0:02:53]} 3. d5 {[%clk 0:03:01]}  e5 {[%clk 0:02:53]} 4. Nc3 {[%clk 0:02:53]}  d6 {[%clk 0:02:53]} 5. e4 {[%clk 0:02:53]}  Be7 {[%clk 0:02:52]} 6. g3 {[%clk 0:02:46]}  O-O {[%clk 0:02:52]} 7. Bg2 {[%clk 0:02:46]}  Na6 {[%clk 0:02:52]} 8. Nge2 {[%clk 0:02:42]}  Ne8 {[%clk 0:02:51]} 9. O-O {[%clk 0:02:40]}  Bd7 {[%clk 0:02:51]} 10. f4 {[%clk 0:02:32]}  Bf6 {[%clk 0:02:51]} 11. Be3 {[%clk 0:02:26]}  Nec7 {[%clk 0:02:45]} 12. a4 {[%clk 0:02:22]}  Nb4 {[%clk 0:02:43]} 13. Qd2 {[%clk 0:02:17]}  Qe7 {[%clk 0:02:42]} 14. f5 {[%clk 0:02:16]}  b6 {[%clk 0:02:41]} 15. g4 {[%clk 0:02:12]}  h6 {[%clk 0:02:40]} 16. Ng3 {[%clk 0:02:09]}  Bg5 {[%clk 0:02:40]} 17. f6 {[%clk 0:01:16]}  Bxf6 {[%clk 0:02:39]} 18. Rxf6 {[%clk 0:01:08]}  Qxf6 {[%clk 0:02:35]} 19. Nf5 {[%clk 0:01:00]}  Bxf5 {[%clk 0:02:31]} 20. gxf5 {[%clk 0:01:01]}  Kh7 {[%clk 0:02:24]} 21. Kh1 {[%clk 0:01:01]}  Rg8 {[%clk 0:02:24]} 22. Rg1 {[%clk 0:00:57]}  a6 {[%clk 0:02:11]} 23. Bf3 {[%clk 0:00:47]}  b5 {[%clk 0:02:06]} 24. axb5 {[%clk 0:00:45]}  axb5 {[%clk 0:02:05]} 25. cxb5 {[%clk 0:00:45]}  Rab8 {[%clk 0:02:05]} 26. Be2 {[%clk 0:00:40]}  Na8 {[%clk 0:01:42]} 27. Nd1 {[%clk 0:00:38]}  Nb6 {[%clk 0:01:39]} 28. Nf2 {[%clk 0:00:38]}  g5 {[%clk 0:01:25]} 29. Ng4 {[%clk 0:00:36]}  Qg7 {[%clk 0:01:20]} 30. f6 {[%clk 0:00:24]}  Qg6 {[%clk 0:01:18]} 31. Nf2 {[%clk 0:00:16]}  Rh8 {[%clk 0:01:17]} 32. Bg4 {[%clk 0:00:16]}  Kg8 {[%clk 0:01:15]} 33. Bf5 {[%clk 0:00:17]}  Qh5 {[%clk 0:01:15]} 34. Ng4 {[%clk 0:00:17]}  Nc4 {[%clk 0:01:11]} 35. Qe2 {[%clk 0:00:15]}  Nxe3 {[%clk 0:01:09]} 36. Qxe3 {[%clk 0:00:16]}  Nc2 {[%clk 0:01:09]} 37. Qd3 {[%clk 0:00:14]}  Nd4 {[%clk 0:01:09]} 38. Qg3 {[%clk 0:00:10]}  Nxf5 {[%clk 0:01:08]} 39. exf5 {[%clk 0:00:11]}  Kh7 {[%clk 0:01:06]} 40. Nf2 {[%clk 0:00:08]}  Rxb5 {[%clk 0:01:04]} 41. Ne4 {[%clk 0:00:08]}  Rxb2 {[%clk 0:01:03]} 42. Nxd6 {[%clk 0:00:09]}  Rd8 {[%clk 0:01:01]} 43. Nxf7 {[%clk 0:00:09]}  Qxf7 {[%clk 0:00:59]} 44. Qxe5 {[%clk 0:00:08]}  Qxd5+ {[%clk 0:00:58]} 45. Qxd5 {[%clk 0:00:08]}  Rxd5 {[%clk 0:00:57]} 46. Re1 {[%clk 0:00:08]}  Rxf5 {[%clk 0:00:56]} 47. Re7+ {[%clk 0:00:06]}  Kg8 {[%clk 0:00:56]} 48. Rg7+ {[%clk 0:00:06]}  Kf8 {[%clk 0:00:55]} 49. Rg6 {[%clk 0:00:07]}  Rf1# {[%clk 0:00:54]} 0-1


[Site "https://www.chess.com"]

[Event "Titled Tuesday Blitz August 22 Early 2023"]
[White "Arencibia Monduy, Antonio"]
[Black "Ai, Evan"]
[WhiteFideId "3507939"]
[BlackFideId "2094770"]
[WhiteElo "2438"]
[BlackElo "2252"]
[Result "1-0"]
[Round "3"]
[TimeControl "180+1"]
[Date "2023.08.22"]
[WhiteClock "0:01:34"]
[BlackClock "0:00:00"]
[Board "232"]

1. e4 {[%clk 0:03:00]}  e5 {[%clk 0:02:52]} 2. Bc4 {[%clk 0:03:00]}  Nf6 {[%clk 0:02:49]} 3. d3 {[%clk 0:03:01]}  Bc5 {[%clk 0:02:47]} 4. Nf3 {[%clk 0:03:01]}  d6 {[%clk 0:02:45]} 5. c3 {[%clk 0:03:00]}  Nc6 {[%clk 0:02:40]} 6. Bb3 {[%clk 0:03:00]}  O-O {[%clk 0:02:39]} 7. O-O {[%clk 0:03:00]}  h6 {[%clk 0:02:35]} 8. h3 {[%clk 0:02:59]}  a6 {[%clk 0:02:33]} 9. Re1 {[%clk 0:02:58]}  Ba7 {[%clk 0:02:23]} 10. Nbd2 {[%clk 0:02:58]}  Re8 {[%clk 0:02:17]} 11. Nf1 {[%clk 0:02:58]}  d5 {[%clk 0:02:08]} 12. Qe2 {[%clk 0:02:54]}  Na5 {[%clk 0:01:14]} 13. Bc2 {[%clk 0:02:51]}  dxe4 {[%clk 0:01:06]} 14. dxe4 {[%clk 0:02:51]}  Qe7 {[%clk 0:01:03]} 15. Ng3 {[%clk 0:02:50]}  b5 {[%clk 0:00:55]} 16. Nh4 {[%clk 0:02:40]}  Nc4 {[%clk 0:00:37]} 17. Nhf5 {[%clk 0:02:14]}  Bxf5 {[%clk 0:00:35]} 18. Nxf5 {[%clk 0:02:14]}  Qc5 {[%clk 0:00:23]} 19. Qf3 {[%clk 0:02:06]}  Qc6 {[%clk 0:00:17]} 20. Bxh6 {[%clk 0:01:34]}  gxh6 {[%clk 0:00:00]} 21. Qg3+ {[%clk 0:01:34]} 1-0


[Site "https://www.chess.com"]

[Event "Titled Tuesday Blitz August 22 Early 2023"]
[White "Kiseleva, Arina"]
[Black "ExchangeAB"]
[WhiteFideId "4164989"]
[WhiteElo "2234"]
[BlackElo "2409"]
[Result "0-1"]
[Round "3"]
[TimeControl "180+1"]
[Date "2023.08.22"]
[WhiteClock "0:00:00"]
[BlackClock "0:00:30"]
[Board "240"]

1. d4 {[%clk 0:03:00]}  Nf6 {[%clk 0:02:59]} 2. Nf3 {[%clk 0:03:00]}  c6 {[%clk 0:02:59]} 3. c4 {[%clk 0:02:59]}  d5 {[%clk 0:03:00]} 4. Nbd2 {[%clk 0:02:59]}  Bf5 {[%clk 0:02:59]} 5. Nh4 {[%clk 0:02:59]}  Bd7 {[%clk 0:02:56]} 6. e3 {[%clk 0:02:58]}  g6 {[%clk 0:02:54]} 7. Bd3 {[%clk 0:02:56]}  Bg7 {[%clk 0:02:54]} 8. O-O {[%clk 0:02:55]}  O-O {[%clk 0:02:54]} 9. b3 {[%clk 0:02:51]}  Na6 {[%clk 0:02:50]} 10. Bb2 {[%clk 0:02:47]}  c5 {[%clk 0:02:48]} 11. Nhf3 {[%clk 0:02:44]}  cxd4 {[%clk 0:02:47]} 12. exd4 {[%clk 0:02:40]}  Nb4 {[%clk 0:02:46]} 13. Bb1 {[%clk 0:02:39]}  dxc4 {[%clk 0:02:43]} 14. bxc4 {[%clk 0:02:39]}  Rc8 {[%clk 0:02:38]} 15. Re1 {[%clk 0:02:37]}  e6 {[%clk 0:02:35]} 16. Ne5 {[%clk 0:02:20]}  Nc6 {[%clk 0:02:34]} 17. Nxd7 {[%clk 0:02:11]}  Qxd7 {[%clk 0:02:33]} 18. Nf3 {[%clk 0:02:11]}  Rfd8 {[%clk 0:02:33]} 19. a3 {[%clk 0:02:01]}  Nh5 {[%clk 0:02:29]} 20. Ba2 {[%clk 0:01:57]}  Nxd4 {[%clk 0:02:25]} 21. Ne5 {[%clk 0:01:43]}  Qd6 {[%clk 0:01:42]} 22. c5 {[%clk 0:01:00]}  Rxc5 {[%clk 0:01:34]} 23. Nc4 {[%clk 0:00:59]}  Qc7 {[%clk 0:01:30]} 24. Ne3 {[%clk 0:00:55]}  Nf4 {[%clk 0:01:23]} 25. Qg4 {[%clk 0:00:51]}  Nd3 {[%clk 0:01:18]} 26. Bxd4 {[%clk 0:00:24]}  Rxd4 {[%clk 0:01:15]} 27. Qf3 {[%clk 0:00:15]}  Nxe1 {[%clk 0:01:15]} 28. Rxe1 {[%clk 0:00:16]}  Rc1 {[%clk 0:01:08]} 29. Qe2 {[%clk 0:00:14]}  Rxe1+ {[%clk 0:01:05]} 30. Qxe1 {[%clk 0:00:15]}  Rd3 {[%clk 0:00:55]} 31. g3 {[%clk 0:00:15]}  Qc3 {[%clk 0:00:54]} 32. Qb1 {[%clk 0:00:12]}  Qb2 {[%clk 0:00:52]} 33. Qxd3 {[%clk 0:00:09]}  Qxa2 {[%clk 0:00:52]} 34. Qd8+ {[%clk 0:00:09]}  Bf8 {[%clk 0:00:52]} 35. Qb8 {[%clk 0:00:08]}  Qxa3 {[%clk 0:00:50]} 36. Qxb7 {[%clk 0:00:06]}  a5 {[%clk 0:00:50]} 37. Qa8 {[%clk 0:00:06]}  Qb4 {[%clk 0:00:45]} 38. h3 {[%clk 0:00:05]}  a4 {[%clk 0:00:46]} 39. Ng4 {[%clk 0:00:05]}  Kg7 {[%clk 0:00:44]} 40. Qd8 {[%clk 0:00:04]}  Be7 {[%clk 0:00:37]} 41. Qd7 {[%clk 0:00:03]}  h5 {[%clk 0:00:36]} 42. Ne3 {[%clk 0:00:02]}  a3 {[%clk 0:00:35]} 43. Qa7 {[%clk 0:00:02]}  Bf6 {[%clk 0:00:32]} 44. h4 {[%clk 0:00:01]}  Bd4 {[%clk 0:00:31]} 45. Nc2 {[%clk 0:00:01]}  Qb1+ {[%clk 0:00:30]} 46. Kg2 {[%clk 0:00:00]}  Bxa7 {[%clk 0:00:30]} 0-1


[Site "https://www.chess.com"]